Cogmind - Beta 13 @@@ ROGUE MODE // 2024.07.13 @ 18:33:10 Player: weedlord420 Result: Destroyed by P-80 Master via exploding Compression Vault Performance ------------- Evolutions (7) 3500 Regions Visited (17) 3400 Robots Destroyed (185) 925 Value Destroyed (7281) 7281 Prototype IDs (32) 640 Alien Tech Used (0) 0 Bonus (2293) 2293 TOTAL SCORE: 18039 Bonus ------- High Alert Combat Kills 505 Follower Combat Kills 320 Entered Garrisons 200 Entered DSFs 500 Aligned with FarCom 300 Met Data Miner 300 Acquired ECA 300 Friendly Fire -132 Cogmind --------- Core Integrity 0/1300 Matter 208/300 Energy 100/100 System Corruption 18% Temperature Cool (0) Movement Flying (45) Location -3/Armory Parts ------- > --- POWER (2) -------- (None) > --- PROPULSION (4) --- Impulse Thruster Array > --- UTILITY (11) ----- (None) > --- WEAPON (4) ------- (None) > --- INVENTORY (5) ---- Antigrav System Advanced Heat Sink Precision Energy Filter Quantum Rifle Advanced Datajack Peak State ------------ > --- POWER ------------ Particle Reactor Reinforced Quantum Reactor > --- PROPULSION ------- Biometal Heavy Treads > --- UTILITY ---------- Advanced Heat Sink Experimental Heat Sink Machine Analyzer Machine Analyzer Machine Analyzer Advanced Visual Processing Unit Advanced Sensor Array Advanced Target Analyzer Improved Particle Charger Advanced Force Field Point Defense System > --- WEAPON ----------- Gamma Rifle Enhanced Quantum Rifle Compact HERF Cannon Heavy Gauss Cannon > --- INVENTORY -------- Light Angular Momentum Engine Q-thruster Precision Energy Filter Long-range Proton Cannon Advanced Datajack [Rating: 125] Favorites ----------- Power Cooled Ion Engine Engine Cooled Ion Engine Power Core Neutrino Core Reactor Particle Reactor Propulsion Armored Treads Treads Armored Treads Leg Potential Leg Hover Unit Improved Gyrokinetic Inverter Flight Unit Impulse Thruster Array Utility Medium Storage Unit Device Improved Cooling System Storage Medium Storage Unit Processor Armor Integrity Analyzer Hackware Hacking Suite Protection Improved Light Armor Plating Weapon Autogun Energy Gun Gatling Laser Energy Cannon Firepult Ballistic Gun Autogun Ballistic Cannon Assault Cannon Launcher Grenade Launcher Build | -11 -10 -10 -10 -9 -8 -7 -7 -7 -7 -6 -6 -6 -5 -5 -4 -3 -3 ------- Run | Yrd Mat Min Exi Min Mat Fac Gar Fac DSF Fac Low Dat Pro Fac Fac Res Arm Slots Evolved 14 | . . . . . 4 2 . . . 2 . . . 2 2 2 . Power 1 | . . . . . . . . . . . . . . . . 1 . Propulsion 2 | . . . . . . 1 . . . . . . . 1 . . . Utility 9 | . . . . . 4 1 . . . 2 . . . . 1 1 . Weapon 2 | . . . . . . . . . . . . . . 1 1 . . Parts Attached 180 | 6 12 . 7 8 18 3 15 1 11 13 4 . 10 11 21 13 27 Power 26 | 1 3 . . . 3 . 1 . 1 1 . . 4 1 3 2 6 Engine 17 | 1 3 . . . 3 . 1 . 1 1 . . 3 . 1 1 2 Core 4 | . . . . . . . . . . . . . 1 1 2 . . Reactor 5 | . . . . . . . . . . . . . . . . 1 4 Propulsion 26 | 2 . . 3 3 3 1 . . 1 1 . . . 2 4 2 4 Treads 18 | 2 . . 2 3 3 1 . . 1 1 . . . 2 2 . 1 Leg 1 | . . . 1 . . . . . . . . . . . . . . Wheel . | . . . . . . . . . . . . . . . . . . Hover 3 | . . . . . . . . . . . . . . . 2 . 1 Flight 4 | . . . . . . . . . . . . . . . . 2 2 Utility 70 | 1 2 . 1 1 9 2 7 1 5 8 2 . 3 5 7 6 10 Device 36 | . . . . . 5 2 3 . 3 5 1 . 1 4 2 5 5 Storage 2 | 1 1 . . . . . . . . . . . . . . . . Processor 8 | . . . . . . . . 1 . 1 . . . . . 1 5 Hackware 1 | . . . . . 1 . . . . . . . . . . . . Protection 23 | . 1 . 1 1 3 . 4 . 2 2 1 . 2 1 5 . . Artifact . | . . . . . . . . . . . . . . . . . . Weapon 58 | 2 7 . 3 4 3 . 7 . 4 3 2 . 3 3 7 3 7 Energy Gun 13 | 1 . . . . . . 2 . 2 . . . . 1 4 . 3 Energy Cannon 16 | . . . 1 2 1 . 2 . 2 1 . . 1 2 . 2 2 Ballistic Gun 20 | 1 5 . 2 2 1 . 2 . . 2 2 . 2 . 1 . . Ballistic Cannon 7 | . . . . . 1 . 1 . . . . . . . 2 1 2 Launcher 2 | . 2 . . . . . . . . . . . . . . . . Special Weapon . | . . . . . . . . . . . . . . . . . . Impact Weapon . | . . . . . . . . . . . . . . . . . . Slashing Weapon . | . . . . . . . . . . . . . . . . . . Piercing Weapon . | . . . . . . . . . . . . . . . . . . Special Melee Weapon . | . . . . . . . . . . . . . . . . . . Unidentified Prototypes 10 | . 1 . 2 . 2 . . . . . . . . 2 1 2 . Corrupted Parts 3 | . . . . . . . . . . . . . . 1 . . 2 System Corruption 13 | . . . . . . . . . . . . . . 7 . . 6 Parts Lost 30 | . 1 . . . . . . . 1 1 . . 8 . 10 . 9 Power 6 | . 1 . . . . . . . . . . . 3 . . . 2 Propulsion 8 | . . . . . . . . . 1 . . . . . 5 . 2 Utility 12 | . . . . . . . . . . 1 . . 4 . 5 . 2 Weapon 4 | . . . . . . . . . . . . . 1 . . . 3 Highest Loss Streak 7 | . 1 . . . . . . . 1 1 . . 5 . 4 . 7 To Critical Strikes . | . . . . . . . . . . . . . . . . . . Average Slot Usage (%) 91 | . 98 100 97 99 95 98 95 100 94 92 99 100 93 100 80 31 52 Engine 7 | . 13 14 14 14 9 7 7 7 7 6 6 6 5 . . 3 2 Treads 20 | . 28 28 27 28 18 22 23 23 22 19 20 20 20 23 14 . 3 Device 13 | . . . . . 18 22 16 15 15 25 20 20 20 23 18 13 14 Storage 8 | . 14 14 14 14 9 7 7 7 7 6 6 6 6 5 4 . . Processor 4 | . . . . . . . . 4 7 6 13 13 13 11 9 . 11 Hackware 3 | . . . . . 7 7 7 7 7 6 6 6 5 . . . . Protection 13 | . 12 14 14 14 19 15 21 17 14 12 13 13 12 10 6 . . Energy Gun 3 | . 1 . . . . . 6 . 1 . . . . 5 14 . 4 Energy Cannon 2 | . . . . . 3 . 3 . 3 5 . . 4 4 3 3 4 Ballistic Gun 9 | . 26 28 25 27 5 7 . 15 6 . 12 13 3 6 1 . . Naked Turns 23 | . . . . . . . . . . . . . . . 7 . 16 Heaviest Build 102 | 14 29 29 45 33 57 42 54 50 58 63 51 51 62 56 82 31 102 Greatest Support 96 | 40 40 40 40 40 40 60 60 60 60 60 60 60 60 96 96 32 75 Greatest Overweight (x) 1 | . . . 1 . 1 . . . 1 1 . . 1 . 1 . 1 Average Overweight (x) . | . . . . . . . . . . . . . . . . . . Largest Inventory Capacity 10 | 8 10 10 10 10 10 10 10 10 10 10 10 10 10 10 10 5 5 Average Capacity 9 | 5 9 10 10 10 10 10 10 10 10 10 10 10 10 10 9 5 5 Most Carried 10 | 5 10 10 10 10 10 10 10 10 10 10 10 10 10 10 10 5 5 Average Carried 8 | 3 8 9 9 9 9 9 9 10 9 9 9 10 8 6 8 4 4 Final Capacity 10 | 8 10 10 10 10 10 10 10 10 10 10 10 10 10 10 5 5 5 Final Carried 10 | . 10 10 10 10 10 10 10 10 10 9 10 10 7 10 4 5 5 Class Distribution -------------------- 59% | Mutant 18% | Scavenger-Mutant 9% | Scavenger-Tank 6% | Skirmisher 5% | Tank Dominant Class ---------------- Mutant | -10/Materials Mutant | -10/Mines Mutant | -10/Exiles Mutant | -9/Mines Mutant | -8/Materials Mutant | -7/Factory Scavenger-Mutant | -7/Garrison Scavenger-Mutant | -7/Factory Mutant | -7/DSF Mutant | -6/Factory Mutant | -6/Lower Caves Mutant | -6/Data Miner Mutant | -5/Proximity Caves Scavenger-Tank | -5/Factory Skirmisher | -4/Factory Scout | -3/Research Skirmisher | -3/Armory Resources | -11 -10 -10 -10 -9 -8 -7 -7 -7 -7 -6 -6 -6 -5 -5 -4 -3 -3 ----------- Run | Yrd Mat Min Exi Min Mat Fac Gar Fac DSF Fac Low Dat Pro Fac Fac Res Arm Matter Collected 3464 | 187 679 8 . 438 457 . 198 . 245 153 57 . 386 156 247 . 253 Remotely . | . . . . . . . . . . . . . . . . . . Salvage Created 8705 | . 695 . . 618 1617 . 1086 . 753 342 101 . 1055 370 1696 . 372 Parts 338 | . 50 . . 33 80 . 24 . 25 7 3 . 19 15 60 . 22 Haulers Intercepted 9 | . 2 . . . 4 . . . . . . . . 1 2 . . Recyclers Shooed 6 | . 1 . . . 2 . . . . . . . . . 3 . . Parts Field Recycled . | . . . . . . . . . . . . . . . . . . Retrieved Matter . | . . . . . . . . . . . . . . . . . . Parts Self-Destructed 20 | . . . . . . . . . . . . . 20 . . . . Prevented 1 | . . . . . . . . . . . . . 1 . . . . Kills | -11 -10 -10 -10 -9 -8 -7 -7 -7 -7 -6 -6 -6 -5 -5 -4 -3 -3 ------- Run | Yrd Mat Min Exi Min Mat Fac Gar Fac DSF Fac Low Dat Pro Fac Fac Res Arm Combat Hostiles Destroyed 143 | . 15 . . 13 25 . 20 . 13 3 . . 20 5 24 . 5 Melee 2 | . . . . . . . . . . . . . 2 . . . . Guns 64 | . 13 . . 11 2 . 3 . 3 1 . . 4 2 21 . 4 Cannons 17 | . . . . . 6 . 2 . 1 . . . 3 3 2 . . AOE 31 | . 2 . . 2 11 . 5 . 6 . . . 5 . . . . Classes Destroyed 22 | . 7 . . 4 4 . 1 . 2 1 1 . 2 . . . . Worker 5 | . . . . . 3 . . . . 1 . . . . 1 . . Builder 10 | . . . . . 7 . . . . . . . . 1 2 . . Tunneler 2 | . . . . 2 . . . . . . . . . . . . . Hauler 9 | . 2 . . . 4 . . . . . . . . 1 2 . . Recycler 7 | . 1 . . 2 . . . . . 1 . . . . 3 . . Operator 2 | . 2 . . . . . . . . . . . . . . . . Drone 2 | . . . . . . . . . . . . . 2 . . . . Watcher 8 | . 3 . . . 3 . . . . 1 . . . . . . 1 Swarmer 26 | . 6 . . . 3 . 4 . 4 . . . . . 9 . . Saboteur 1 | . . . . . . . . . . . . . 1 . . . . Grunt 49 | . 8 . . 6 12 . 4 . 3 . . . 9 5 2 . . Brawler 5 | . . . . 3 . . 1 . . . . . 1 . . . . Duelist 3 | . . . . . . . 1 . 1 . . . 1 . . . . Sentry 24 | . . . . . 7 . 10 . . 2 . . 2 . 2 . 1 Demolisher 3 | . . . . 2 . . . . . . . . . . . . 1 Specialist 4 | . . . . . . . . . 4 . . . . . . . . Hunter 9 | . . . . . 3 . . . . . . . 2 . 3 . 1 Programmer 12 | . . . . . . . . . . 1 . . 2 . 7 . 2 Heavy 1 | . . . . . . . . . 1 . . . . . . . . Subdweller 1 | . 1 . . . . . . . . . . . . . . . . Samaritan 2 | . . . . . . . . . . . 2 . . . . . . Assembled 2 | . . . . 2 . . . . . . . . . . . . . Thug 1 | . . . . . 1 . . . . . . . . . . . . Savage 1 | . . . . . . . . . . . . . . . 1 . . Best Kill Streak 18 | . 4 . . 6 18 . 7 . 8 3 . . 5 4 8 . 2 Combat Bots Only 11 | . 3 . . 4 11 . 7 . 8 1 . . 5 2 7 . 2 Max Kills in Single Turn 8 | . 2 . . 2 6 . 3 . 8 3 1 . 2 3 3 . 1 Gunslinging 2 | . 1 . . . . . . . . . . . . . 2 . . Exploded 5 | . 1 . . 2 4 . 3 . 5 . . . 1 . . . . Melee 1 | . . . . . . . . . . . . . 1 . . . . Uniques/NPCs Destroyed . | . . . . . . . . . . . . . . . . . . Combat | -11 -10 -10 -10 -9 -8 -7 -7 -7 -7 -6 -6 -6 -5 -5 -4 -3 -3 -------- Run | Yrd Mat Min Exi Min Mat Fac Gar Fac DSF Fac Low Dat Pro Fac Fac Res Arm Hostile Shots Fired 811 | . 68 . . 44 80 . 77 . 47 17 . . 93 16 107 . 262 Missed 271 | . 17 . . 13 22 . 36 . 14 9 . . 28 5 31 . 96 Intercepted 1 | . . . . . . . . . . . . . . . . . 1 Damage Taken 9345 | . 539 . . 380 932 . 459 . 569 189 . . 1364 209 1412 . 3292 Core 1752 | . 69 . . 29 96 . 12 . 37 11 . . 72 18 107 . 1301 Absorbed by Shields 539 | . . . . . . . . . 124 43 . . 70 25 62 . 215 Reduced by Siege Mode 232 | . . . . . . . . . . . . . . . . . 232 Regen/Repaired (Parts) 348 | . . . . . 41 . . . . 307 . . . . . . . Core Remaining (%) 87 | 100 . . . 60 82 . . . 93 . . . 90 98 90 . . Volleys Fired 366 | . 68 . . 37 56 . 33 . 18 9 8 . 33 11 69 . 24 Largest 4 | . 2 . . 2 2 . 2 . 2 2 2 . 2 3 4 . 4 Hottest 348 | . 60 . . 250 250 . 250 . 250 250 70 . 250 260 348 . 295 Shots Fired 811 | . 133 . . 73 91 . 40 . 33 14 16 . 50 33 271 . 57 Gun 629 | . 131 . . 72 35 . 15 . 30 8 16 . 35 21 243 . 23 Cannon 180 | . . . . 1 56 . 25 . 3 6 . . 15 12 28 . 34 Launcher 2 | . 2 . . . . . . . . . . . . . . . . Special . | . . . . . . . . . . . . . . . . . . Kinetic 388 | . 122 . . 72 70 . 2 . 24 8 16 . 35 10 14 . 15 Thermal 389 | . . . . 1 21 . 38 . 9 6 . . 15 23 257 . 19 Explosive 2 | . 2 . . . . . . . . . . . . . . . . Electromagnetic 32 | . 9 . . . . . . . . . . . . . . . 23 Robot Hit Streak 15 | . 8 . . 6 12 . 13 . 6 8 14 . 6 12 15 . 12 Robot Miss Streak 8 | . 7 . . 4 5 . 3 . 3 2 1 . 6 3 8 . 5 Penetration Max 1 | . . . . . . . . . . . . . 1 . . . . Secondary Targets 10 | . 1 . . 1 . . . . 1 . . . . . 7 . . Max Gunslinging Chain 2 | . 1 . . 1 . . . . 1 . . . . . 2 . . Shots Hit Robots 482 | . 81 . . 46 48 . 25 . 21 9 13 . 29 26 142 . 42 Core Hits 369 | . 33 . . 30 68 . 37 . 32 10 4 . 45 19 78 . 13 Critical Kills 1 | . . . . . . . . . . . . . . . 1 . . Critical Parts Destroyed 5 | . 2 . . . . . . . . . . . 1 . 2 . . Critical Strikes 10 | . 2 . . . . . . . . . . . 1 . 3 . 4 Destroy 6 | . 2 . . . . . . . . . . . 1 . 3 . . Blast 2 | . . . . . . . . . . . . . . . . . 2 Corrupt 2 | . . . . . . . . . . . . . . . . . 2 Melee Attacks . | . . . . . . . . . . . . . . . . . . Impact . | . . . . . . . . . . . . . . . . . . Slashing . | . . . . . . . . . . . . . . . . . . Piercing . | . . . . . . . . . . . . . . . . . . Sneak Attacks . | . . . . . . . . . . . . . . . . . . Combat Hostiles . | . . . . . . . . . . . . . . . . . . Follow-up Attacks . | . . . . . . . . . . . . . . . . . . Damage Inflicted 16710 | . 1343 . . 845 2556 . 1756 . 1070 573 330 . 1869 802 4225 . 1341 Guns 8814 | . 1210 . . 735 381 . 262 . 450 106 330 . 533 463 3728 . 616 Cannons 3117 | . . . . 25 751 . 406 . 102 72 . . 320 339 377 . 725 Explosions 4750 | . 133 . . 85 1424 . 1088 . 518 395 . . 994 . 113 . . Melee . | . . . . . . . . . . . . . . . . . . Ramming 29 | . . . . . . . . . . . . . 22 . 7 . . Kinetic 4699 | . 1155 . . 735 723 . 48 . 381 106 330 . 533 203 75 . 410 Thermal 11339 | . 59 . . 110 1833 . 1708 . 689 467 . . 1314 599 4030 . 530 Explosive 187 | . 74 . . . . . . . . . . . . . 113 . . Electromagnetic 456 | . 55 . . . . . . . . . . . . . . . 401 Impact . | . . . . . . . . . . . . . . . . . . Slashing . | . . . . . . . . . . . . . . . . . . Piercing . | . . . . . . . . . . . . . . . . . . Highest Corruption 18 | . . . . . . . . . . 2 2 2 3 7 1 . 18 Average Corruption 3 | . . . . . . . . . . 1 2 2 2 7 1 . 7 Corruption Purged . | . . . . . . . . . . . . . . . . . . Corruption Blocked . | . . . . . . . . . . . . . . . . . . Effects 45 | . . . . . . . . . . 6 1 5 16 . 2 . 15 Message Errors 9 | . . . . . . . . . . 1 . . 7 . . . 1 Matter Fused 11 | . . . . . . . . . . . 1 2 5 . 1 . 2 Heat Flow Errors 8 | . . . . . . . . . . 1 . 2 1 . 1 . 3 Energy Discharges 3 | . . . . . . . . . . 1 . . . . . . 2 Parts Rejected 1 | . . . . . . . . . . . . . . . . . 1 Parts Fused 1 | . . . . . . . . . . . . . 1 . . . . Data Loss (minor) 2 | . . . . . . . . . . 1 . . . . . . 1 Data Loss (major) 2 | . . . . . . . . . . . . . 1 . . . 1 Misfires 1 | . . . . . . . . . . 1 . . . . . . . Alerts 2 | . . . . . . . . . . 1 . 1 . . . . . Misdirections 3 | . . . . . . . . . . . . . . . . . 3 Weapon Failures 2 | . . . . . . . . . . . . . 1 . . . 1 Overload Shots . | . . . . . . . . . . . . . . . . . . Overflow Damage 117 | . . . . . . . 12 . 12 16 . . 5 . 72 . . Projectiles 1 | . . . . . . . 1 . . . . . . . . . . Explosions 116 | . . . . . . . 11 . 12 16 . . 5 . 72 . . Melee . | . . . . . . . . . . . . . . . . . . Knockbacks 2 | . . . . . . . . . . . . . . . . . 2 Impact . | . . . . . . . . . . . . . . . . . . Kinetic 2 | . . . . . . . . . . . . . . . . . 2 Secondary . | . . . . . . . . . . . . . . . . . . Self-Inflicted Damage 386 | . 7 . . . 52 . 78 . . 44 . . 107 . 98 . . Shots 34 | . 1 . . . 6 . 14 . . 4 . . 8 . 1 . . Rammed 6 | . . . . . . . . . . . . . 5 . 1 . . Targets Rammed 8 | . . . . . . . . . . . . . 7 . 1 . . Kicked . | . . . . . . . . . . . . . . . . . . Crushed 2 | . . . . . . . . . . . . . 2 . . . . Highest Temperature 359 | . 163 . . 216 359 . 357 . 252 232 . 149 214 338 278 . 331 Average Temperature 79 | . 33 . . 38 129 . 143 . 102 102 . 72 104 108 48 . 114 Received Heat Transfer 1559 | . 174 . . 165 342 . 120 . 43 4 . . 303 98 63 . 247 Effects 1 | . . . . 1 . . . . . . . . . . . . . Interference 1 | . . . . 1 . . . . . . . . . . . . . Siege Activations 2 | . . . . . . . . . . . . . . . . . 2 Total Turns 77 | . . . . . . . . . . . . . . . . . 77 Longest Duration 50 | . . . . . . . . . . . . . . . . . 50 Robots Corrupted 1 | . . . . . . . . . . . . . . . . . 1 Combat Hostiles 1 | . . . . . . . . . . . . . . . . . 1 Parts Fried . | . . . . . . . . . . . . . . . . . . Impact Corruptions . | . . . . . . . . . . . . . . . . . . Robots Melted 33 | . . . . . 7 . 10 . 5 4 . . 6 . 1 . . Combat Hostiles 28 | . . . . . 6 . 10 . 3 2 . . 6 . 1 . . Parts Melted 134 | . . . . . 39 . 34 . 13 12 . . 22 . 14 . . Heat Transferred 38312 | . 50 . . 560 10240 . 7595 . 3990 2480 . . 6720 600 5522 . 555 Parts Sabotaged 2 | . . . . . . . . . . . . . . . 2 . . Parts Stolen . | . . . . . . . . . . . . . . . . . . Parts Stripped . | . . . . . . . . . . . . . . . . . . Power Chain Reactions 1 | . 1 . . . . . . . . . . . . . . . . Alert | -11 -10 -10 -10 -9 -8 -7 -7 -7 -7 -6 -6 -6 -5 -5 -4 -3 -3 ------- Run | Yrd Mat Min Exi Min Mat Fac Gar Fac DSF Fac Low Dat Pro Fac Fac Res Arm Peak Influence 1003 | . 270 82 . 185 603 235 1003 526 673 352 . . . 394 598 328 310 Initial 526 | . . 82 . . 34 235 164 526 368 352 . . . 394 165 313 172 Average 279 | . 117 46 . 54 388 235 647 526 507 149 . . . 331 284 313 201 Maximum Alert Level 3 | . 1 . . . 2 1 3 2 2 1 . . . 1 2 1 1 Low Security (%) 48 | 100 95 100 . 100 32 . 5 . . 75 . . . 2 25 . 45 Level 1 25 | . 4 . . . 1 100 11 . 31 24 . . . 97 51 100 54 Level 2 20 | . . . . . 65 . 46 100 68 . . . . . 23 . . Level 3 5 | . . . . . . . 37 . . . . . . . . . . Level 4 . | . . . . . . . . . . . . . . . . . . Level 5 . | . . . . . . . . . . . . . . . . . . High Security . | . . . . . . . . . . . . . . . . . . Max Security . | . . . . . . . . . . . . . . . . . . Sterilizations 1 | . . . . . . . . . 1 . . . . . . . . Squads Dispatched 27 | . 3 . . 1 5 . . . 2 3 . . 1 1 8 . 3 Investigation 5 | . 1 . . 1 2 . . . . . . . . . 1 . . Extermination 8 | . . . . . . . . . . 2 . . . . 4 . 2 Reinforcement 12 | . 2 . . . 3 . . . 2 1 . . . 1 2 . 1 Assault 2 | . . . . . . . . . . . . . 1 . 1 . . Garrison . | . . . . . . . . . . . . . . . . . . Intercept . | . . . . . . . . . . . . . . . . . . Searches Triggered . | . . . . . . . . . . . . . . . . . . Data Miner Redirects 2 | . . . . . . . . . . . . . . . 2 . . Construction Impeded 4 | . . . . . 2 . . . . . . . . . 2 . . Haulers Reinforced . | . . . . . . . . . . . . . . . . . . Active Scanning Responses . | . . . . . . . . . . . . . . . . . . Cargo Convoy Interrupts . | . . . . . . . . . . . . . . . . . . Stealth | -11 -10 -10 -10 -9 -8 -7 -7 -7 -7 -6 -6 -6 -5 -5 -4 -3 -3 --------- Run | Yrd Mat Min Exi Min Mat Fac Gar Fac DSF Fac Low Dat Pro Fac Fac Res Arm Distress Signals 12 | . 1 . . . 6 . . . . 1 . . 1 . 2 . 1 Communications Jammed . | . . . . . . . . . . . . . . . . . . Distress Signals . | . . . . . . . . . . . . . . . . . . Times Spotted 224 | . 29 . . 14 33 . 27 . 13 7 . . 27 5 34 . 35 Peak Tracking Total 18 | . 3 . . 3 10 . 6 . 8 3 . . 7 2 7 . 18 Tactical Retreats 15 | . 2 . . . 1 . 1 . . 1 . . 3 . 4 . 3 Traps | -11 -10 -10 -10 -9 -8 -7 -7 -7 -7 -6 -6 -6 -5 -5 -4 -3 -3 ------- Run | Yrd Mat Min Exi Min Mat Fac Gar Fac DSF Fac Low Dat Pro Fac Fac Res Arm Traps Triggered 10 | . 2 . . . 1 . 3 . 2 . . . . 1 . . 1 Indirectly . | . . . . . . . . . . . . . . . . . . Trap Hack Attempts . | . . . . . . . . . . . . . . . . . . Triggered . | . . . . . . . . . . . . . . . . . . Disarmed . | . . . . . . . . . . . . . . . . . . Reprogrammed . | . . . . . . . . . . . . . . . . . . Reused . | . . . . . . . . . . . . . . . . . . Traps Extracted . | . . . . . . . . . . . . . . . . . . Installed . | . . . . . . . . . . . . . . . . . . Triggered 1 | . . . . . . . . . . . . . 1 . . . . Machines | -11 -10 -10 -10 -9 -8 -7 -7 -7 -7 -6 -6 -6 -5 -5 -4 -3 -3 ---------- Run | Yrd Mat Min Exi Min Mat Fac Gar Fac DSF Fac Low Dat Pro Fac Fac Res Arm Machines Disabled 18 | . 1 . . . 7 . 1 . . 1 . . 1 . 6 . 1 Max in Single Turn 2 | . 1 . . . 1 . 1 . . 1 . . 1 . 2 . 1 Garrison Access 1 | . . . . . . . . . . 1 . . . . . . . Garrison Relay 1 | . . . . . . . 1 . . . . . . . . . . Machines Repaired . | . . . . . . . . . . . . . . . . . . Machines Dismantled . | . . . . . . . . . . . . . . . . . . Machines Sabotaged . | . . . . . . . . . . . . . . . . . . Overloaded Fab Kills . | . . . . . . . . . . . . . . . . . . Hacking | -11 -10 -10 -10 -9 -8 -7 -7 -7 -7 -6 -6 -6 -5 -5 -4 -3 -3 --------- Run | Yrd Mat Min Exi Min Mat Fac Gar Fac DSF Fac Low Dat Pro Fac Fac Res Arm Machines Accessed 37 | . 7 . . 1 8 1 3 1 . 4 . 4 . 1 3 1 3 Terminals 22 | . 6 . . . 7 . 3 1 . 1 . . . 1 . 1 2 Fabricators 3 | . . . . . . . . . . . . . . . 3 . . Repair Stations 4 | . 1 . . . 1 . . . . 2 . . . . . . . Recycling Units 1 | . . . . . . . . . . . . . . . . . 1 Scanalyzers . | . . . . . . . . . . . . . . . . . . Garrison Access 2 | . . . . . . 1 . . . 1 . . . . . . . Total Hacks 103 | . 18 . . 1 20 1 4 1 . 11 . 30 . 1 10 1 5 Successful 72 | . 9 . . 1 10 1 3 1 . 9 . 30 . . 5 . 3 Failed 31 | . 9 . . . 10 . 1 . . 2 . . . 1 5 1 2 Catastrophic 2 | . . . . . . . . . . . . . . . 1 . 1 Database Lockouts . | . . . . . . . . . . . . . . . . . . Manual 2 | . . . 1 . . . . . . . . . . 1 . . . Terminals 43 | . 15 . . . 17 . 4 1 . 2 . . . 1 . 1 2 Fabricators 10 | . . . . . . . . . . . . . . . 10 . . Repair Stations 14 | . 3 . . . 3 . . . . 8 . . . . . . . Recycling Units 3 | . . . . . . . . . . . . . . . . . 3 Scanalyzers . | . . . . . . . . . . . . . . . . . . Garrison Access 2 | . . . . . . 1 . . . 1 . . . . . . . Terminal Hacks 51 | . 8 . . 1 7 . 3 1 . 1 . 30 . . . . . Record 14 | . 1 . . . 1 . . . . 1 . 11 . . . . . Part Schematic 11 | . . . . . . . . . . . . 11 . . . . . Robot Schematic 5 | . . . . . . . . . . . . 5 . . . . . Prototype ID Bank 9 | . 3 . . . 3 . . . . . . 3 . . . . . Open Door 1 | . . . . 1 . . . . . . . . . . . . . Open DSF 1 | . . . . . . . . 1 . . . . . . . . . Branch Access Points 1 | . 1 . . . . . . . . . . . . . . . . Emergency Access Points 2 | . . . . . 1 . 1 . . . . . . . . . . Unreport Threat 2 | . 1 . . . 1 . . . . . . . . . . . . Locate Traps 1 | . . . . . 1 . . . . . . . . . . . . Registered Components 1 | . 1 . . . . . . . . . . . . . . . . Zone Layout 1 | . 1 . . . . . . . . . . . . . . . . Patrol Navigation 1 | . . . . . . . 1 . . . . . . . . . . Security Stations 1 | . . . . . . . 1 . . . . . . . . . . Fabricator Hacks 5 | . . . . . . . . . . . . . . . 5 . . Load Schematic 3 | . . . . . . . . . . . . . . . 3 . . Build 2 | . . . . . . . . . . . . . . . 2 . . Repair Station Hacks 11 | . 1 . . . 3 . . . . 7 . . . . . . . Scan Component 7 | . 1 . . . 2 . . . . 4 . . . . . . . Repair 4 | . . . . . 1 . . . . 3 . . . . . . . Recycling Unit Hacks 3 | . . . . . . . . . . . . . . . . . 3 Recycle Component 1 | . . . . . . . . . . . . . . . . . 1 Process 1 | . . . . . . . . . . . . . . . . . 1 Retrieve Matter 1 | . . . . . . . . . . . . . . . . . 1 Scanalyzer . | . . . . . . . . . . . . . . . . . . Garrison Access Hacks 2 | . . . . . . 1 . . . 1 . . . . . . . Unlock Access 1 | . . . . . . 1 . . . . . . . . . . . Seal Access 1 | . . . . . . . . . . 1 . . . . . . . Unauthorized Hacks . | . . . . . . . . . . . . . . . . . . Terminals . | . . . . . . . . . . . . . . . . . . Fabricators . | . . . . . . . . . . . . . . . . . . Repair Stations . | . . . . . . . . . . . . . . . . . . Recycling Units . | . . . . . . . . . . . . . . . . . . Scanalyzers . | . . . . . . . . . . . . . . . . . . Garrison Access . | . . . . . . . . . . . . . . . . . . Data Cores Recovered 1 | . 1 . . . . . . . . . . . . . . . . Used . | . . . . . . . . . . . . . . . . . . Hacking Detections 21 | . 5 . . . 7 . 2 . . 2 . . . . 3 . 2 Full Trace Events 2 | . . . . . 1 . . . . . . . . . 1 . . Feedback Events . | . . . . . . . . . . . . . . . . . . Feedback Blocked . | . . . . . . . . . . . . . . . . . . Robot Schematics Acquired 5 | . . . . . . . . . . . . 5 . . . . . Robots Built 2 | . . . . . . . . . . . . . . . 2 . . Authchips . | . . . . . . . . . . . . . . . . . . Time 84 | . . . . . . . . . . . . . . . 84 . . Total Robot Build Rating 12 | . . . . . . . . . . . . . . . 12 . . Part Schematics Acquired 11 | . . . . . . . . . . . . 11 . . . . . Parts Built 2 | . . . . . . . . . . . . . . . 2 . . Authchips . | . . . . . . . . . . . . . . . . . . Time 69 | . . . . . . . . . . . . . . . 69 . . Total Part Build Rating 18 | . . . . . . . . . . . . . . . 18 . . Parts Repaired 4 | . . . . . 1 . . . . 3 . . . . . . . Time 182 | . . . . . 50 . . . . 132 . . . . . . . Parts Recycled 1 | . . . . . . . . . . . . . . . . . 1 Recycled Matter 171 | . . . . . . . . . . . . . . . . . 171 Retrieved Matter 171 | . . . . . . . . . . . . . . . . . 171 Retrieved Components . | . . . . . . . . . . . . . . . . . . Parts Scanalyzed . | . . . . . . . . . . . . . . . . . . Part Schematics Acquired . | . . . . . . . . . . . . . . . . . . Parts Damaged . | . . . . . . . . . . . . . . . . . . Bothacking | -11 -10 -10 -10 -9 -8 -7 -7 -7 -7 -6 -6 -6 -5 -5 -4 -3 -3 ------------ Run | Yrd Mat Min Exi Min Mat Fac Gar Fac DSF Fac Low Dat Pro Fac Fac Res Arm Used RIF Installer . | . . . . . . . . . . . . . . . . . . Robots Hacked . | . . . . . . . . . . . . . . . . . . Non-combat . | . . . . . . . . . . . . . . . . . . Combat . | . . . . . . . . . . . . . . . . . . Robot Hacks Applied . | . . . . . . . . . . . . . . . . . . Relay Couplers Released 6 | . . . . . . . 3 . . 3 . . . . . . . Machine Destruction 3 | . . . . . . . 3 . . . . . . . . . . Programmers 3 | . . . . . . . . . . 3 . . . . . . . Fabnet Peak Effective % . | . . . . . . . . . . . . . . . . . . Robots Rewired . | . . . . . . . . . . . . . . . . . . Allies Hacked . | . . . . . . . . . . . . . . . . . . Hacks Repelled . | . . . . . . . . . . . . . . . . . . Allies | -11 -10 -10 -10 -9 -8 -7 -7 -7 -7 -6 -6 -6 -5 -5 -4 -3 -3 -------- Run | Yrd Mat Min Exi Min Mat Fac Gar Fac DSF Fac Low Dat Pro Fac Fac Res Arm Total Allies 7 | . . . . 3 . . 2 . . . . . . . 2 . . Largest Group 3 | . . . . 3 1 . 2 . . . . . . . 2 . . Highest-Rated Group 175 | . . . . 70 31 . 175 . . . . . . . 92 . . Highest-Rated Ally 95 | . . . . 31 31 . 95 . . . . . . . 46 . . Warlord Squad Rendezvous 1 | . . . . . . . . . . . . . . . 1 . . Muscle 1 | . . . . . . . . . . . . . . . 1 . . Total Orders . | . . . . . . . . . . . . . . . . . . Ally Attacks 45 | . . . . 15 3 . 19 . . . . . . . 8 . . Total Damage 1226 | . . . . 211 41 . 523 . . . . . . . 451 . . Kills 11 | . . . . 2 . . 8 . . . . . . . 1 . . Allies Corrupted . | . . . . . . . . . . . . . . . . . . Allies Melted . | . . . . . . . . . . . . . . . . . . Intel | -11 -10 -10 -10 -9 -8 -7 -7 -7 -7 -6 -6 -6 -5 -5 -4 -3 -3 ------- Run | Yrd Mat Min Exi Min Mat Fac Gar Fac DSF Fac Low Dat Pro Fac Fac Res Arm Robot Analysis Total . | . . . . . . . . . . . . . . . . . . Derelict Logs Recovered 2 | . . 1 . 1 . . . . . . . . . . . . . Drone Launches . | . . . . . . . . . . . . . . . . . . Drone Recoveries . | . . . . . . . . . . . . . . . . . . Exploration | -11 -10 -10 -10 -9 -8 -7 -7 -7 -7 -6 -6 -6 -5 -5 -4 -3 -3 ------------- Run | Yrd Mat Min Exi Min Mat Fac Gar Fac DSF Fac Low Dat Pro Fac Fac Res Arm Turns Passed 14143 | 33 1178 709 528 1534 1656 192 1772 30 354 1601 100 133 850 767 1864 170 672 Spaces Moved 6847 | 39 586 442 316 708 728 112 971 17 125 515 40 79 318 307 806 277 461 Core 144 | 38 . . . . . . . . . . . . . . 76 . 30 Treads 6101 | 1 586 442 316 708 728 112 971 17 125 515 40 79 318 307 666 . 170 Legs . | . . . . . . . . . . . . . . . . . . Wheels . | . . . . . . . . . . . . . . . . . . Hover 219 | . . . . . . . . . . . . . . . 64 127 28 Flight 383 | . . . . . . . . . . . . . . . . 150 233 Fastest Speed 42 | 50 160 160 160 160 165 165 166 166 166 170 170 170 170 165 50 42 42 Average Speed 165 | 52 160 160 160 160 189 165 166 166 175 246 170 170 229 165 166 50 94 Slowest Speed 250 | 160 160 160 240 160 245 166 166 166 250 250 170 170 250 165 246 61 225 Overloaded Moves . | . . . . . . . . . . . . . . . . . . Propulsion Burnouts . | . . . . . . . . . . . . . . . . . . Robots Hopped 3 | . . . . . . . . . . . . . . . . . 3 Cave-ins Triggered . | . . . . . . . . . . . . . . . . . . Exploration Rate (%) 42 | 4 64 91 59 100 60 4 90 1 90 12 13 70 58 6 16 8 27 Regions Visited 17 Branch Regions 7 Pre-discovered Areas 3 | . . . . 1 . . . . . . 1 1 . . . . . Known Exits Taken 8 | . 1 . . . . 1 . 1 . 1 1 1 1 1 . . . Unknown Exits Taken 7 | 1 . 1 1 1 1 . . . . . . . . . 1 1 . Scrap Searched 5 | . . 2 . 3 . . . . . . . . . . . . . Spaces Dug 42 | . 9 . . . 2 . . . . . . . . . 31 . . Terrain Destroyed 291 | . 18 . . 4 145 . . . . 1 5 . 10 4 100 . 4 Melee . | . . . . . . . . . . . . . . . . . . Projectile 120 | . . . . . 17 . . . . 1 5 . 10 4 79 . 4 AOE 171 | . 18 . . 4 128 . . . . . . . . . 21 . . Terrain Rammed . | . . . . . . . . . . . . . . . . . . Walls Destroyed . | . . . . . . . . . . . . . . . . . . Machines Disabled . | . . . . . . . . . . . . . . . . . . Actions | -11 -10 -10 -10 -9 -8 -7 -7 -7 -7 -6 -6 -6 -5 -5 -4 -3 -3 --------- Run | Yrd Mat Min Exi Min Mat Fac Gar Fac DSF Fac Low Dat Pro Fac Fac Res Arm Total 8964 | 51 717 445 341 1055 922 117 1098 19 227 835 56 78 378 538 1140 306 641 Wait 1342 | . 26 . . 285 95 . 52 . 55 287 2 . 2 197 225 . 116 Move 6825 | 38 585 441 315 707 727 112 970 16 124 514 39 78 317 306 805 276 455 Hop 3 | . . . . . . . . . . . . . . . . . 3 Pick Up 115 | 6 17 2 8 7 10 2 9 1 7 6 2 . 7 8 10 5 8 Fast Attach 41 | 1 2 . 2 1 2 . 3 . 1 3 . . . . 3 9 14 Attach 83 | 5 3 . 4 3 9 2 4 . 4 8 2 . 9 5 12 3 10 Detach 16 | . . . . . 4 . 1 . . 2 . . . 1 2 3 3 Swap 56 | . 7 . 1 4 7 1 8 1 6 2 2 . 1 6 6 1 3 Drop 102 | 1 9 2 11 11 12 . 16 1 8 4 1 . 2 4 6 9 5 Fire 366 | . 68 . . 37 56 . 33 . 18 9 8 . 33 11 69 . 24 Melee . | . . . . . . . . . . . . . . . . . . Ram . | . . . . . . . . . . . . . . . . . . Kick . | . . . . . . . . . . . . . . . . . . Crush 8 | . . . . . . . . . . . . . 7 . 1 . . Escape Stasis 6 | . . . . . . . 2 . 4 . . . . . . . . Rewire 1 | . . . . . . . . . . . . . . . 1 . . Trap . | . . . . . . . . . . . . . . . . . . Miscellaneous . | . . . . . . . . . . . . . . . . . . Route ------- -11/Scrapyard -10/Materials (discovered 3 exits: [*Mat x2] / *Min) -10/Mines (discovered 3 exits: [*Mat x2] / *Exi) -10/Exiles -9/Mines (discovered 2 exits: *Mat x2) -8/Materials (discovered 2 exits: *Fac x2) -7/Factory -7/Garrison (discovered 3 exits: *Fac x3) -7/Factory -7/DSF -6/Factory -6/Lower Caves -6/Data Miner -5/Proximity Caves -5/Factory -4/Factory -3/Research -3/Armory History --------- Turn | Location | Event 6 | -11/Scrapyard | Discovered new exit (range 16) 34 | -11/Scrapyard | Entered Materials 221 | -10/Materials | Identified exit to Mines 314 | -10/Materials | Build established: Mutant 621 | -10/Materials | Discovered new exit (range 7) 751 | -10/Materials | Discovered new exit (range 16) 934 | -10/Materials | Derelicts attacked the area 1212 | -10/Materials | Entered Mines 1305 | -10/Mines | Found a damaged Exp. Sensor Array with a note attached 1312 | -10/Mines | Found Prototype Device 1344 | -10/Mines | Learned Materials stockpile data 1400 | -10/Mines | Deemed a non-threat by the Exiles lab entrance 1473 | -10/Mines | Discovered new exit (range 14) 1659 | -10/Mines | Received a Rocket Launcher from a helpful Derelict 1711 | -10/Mines | Discovered new exit (range 4) 1915 | -10/Mines | Discovered new exit (range 5) 1921 | -10/Mines | Entered Exiles 1960 | -10/Exiles | Met 8R-AWN 1984 | -10/Exiles | Met EX-HEX 2030 | -10/Exiles | Met EX-BIN 2053 | -10/Exiles | Aligned with FarCom system 2054 | -10/Exiles | Given EX-Vault access code 2091 | -10/Exiles | Opened EX-Vault 2108 | -10/Exiles | Found Prototype Energy Cannon 2110 | -10/Exiles | Identified Firepult 2119 | -10/Exiles | Found Prototype Leg 2121 | -10/Exiles | Found Prototype Leg 2123 | -10/Exiles | Identified Potential Leg (x2) 2215 | -10/Exiles | Warned to stay clear of 0b10 Research branches 2260 | -10/Exiles | Met EX-DEC 2428 | -10/Exiles | Discovered new exit (range 14) 2449 | -10/Exiles | Left Exiles lab with Firepult 2449 | -10/Exiles | Entered Mines 2789 | -9/Mines | Assembled infested the area 3313 | -9/Mines | Discovered new exit (range 12) 3566 | -9/Mines | Learned location of Storage (-9) 3594 | -9/Mines | Received a Mining Laser from a helpful Derelict 3922 | -9/Mines | Discovered new exit (range 3) 3934 | -9/Mines | Met a Derelict shopkeep closing up shop 3983 | -9/Mines | Entered Materials 3983 | -8/Materials | Accompanied by 1 ally 3983 | -8/Materials | Evolved 4 slots: Utility x4 3986 | -8/Materials | Identified Exp. Sensor Array 3988 | -8/Materials | Led the pair of lost Derelicts to an unsafe place 4273 | -8/Materials | Repaired Lgt. Angular Momentum Engine 4481 | -8/Materials | Build established: Scavenger-Mutant 4608 | -8/Materials | Destroyed 11 combat bots 4757 | -8/Materials | Discovered new exit (range 15) 5413 | -8/Materials | Build established: Mutant 5618 | -8/Materials | Discovered new exit (range 10) 5639 | -8/Materials | Entered Factory 5639 | -7/Factory | Evolved 2 slots: Propulsion x1, Utility x1 5831 | -7/Factory | Identified exit to Garrison 5831 | -7/Factory | Entered Garrison 5910 | -7/Garrison | Triggered checkpoint 5974 | -7/Garrison | Destroyed 7 combat bots 6071 | -7/Garrison | Discovered new exit (range 14) 6113 | -7/Garrison | Triggered checkpoint 6302 | -7/Garrison | Build established: Scavenger-Mutant 6444 | -7/Garrison | Triggered checkpoint 6534 | -7/Garrison | Discovered new exit (range 11) 6623 | -7/Garrison | Triggered checkpoint 6759 | -7/Garrison | Found embedded Infiltrators 6959 | -7/Garrison | Triggered checkpoint 7185 | -7/Garrison | Discovered new exit (range 15) 7259 | -7/Garrison | Learned Factory security intel 7271 | -7/Garrison | Triggered checkpoint 7603 | -7/Garrison | Entered Factory 7631 | -7/Factory | Identified exit to DSF 7633 | -7/Factory | Entered DSF 7670 | -7/DSF | Additional patrols routed to DSF 7855 | -7/DSF | Sterilization system engaged 7875 | -7/DSF | Ambient heat levels rising (+10) 7875 | -7/DSF | Destroyed 8 combat bots 7890 | -7/DSF | Ambient heat levels rising (+10) 7905 | -7/DSF | Ambient heat levels rising (+10) 7920 | -7/DSF | Ambient heat levels rising (+10) 7935 | -7/DSF | Ambient heat levels rising (+10) 7950 | -7/DSF | Ambient heat levels rising (+10) 7957 | -7/DSF | Discovered new exit (range 15) 7965 | -7/DSF | Ambient heat levels rising (+10) 7980 | -7/DSF | Ambient heat levels rising (+10) 7987 | -7/DSF | Entered Factory 7987 | -6/Factory | Evolved 2 slots: Utility x2 8078 | -6/Factory | Build established: Mutant 8218 | -6/Factory | Repaired Arm. Treads 8270 | -6/Factory | Repaired Adv. Heat Sink 8315 | -6/Factory | Repaired Imp. Cooling System 9393 | -6/Factory | Discovered new exit (range 16) 9554 | -6/Factory | Identified exit to Lower Caves 9588 | -6/Factory | Entered Lower Caves 9616 | -6/Lower Caves | Met a Warlord Commander 9617 | -6/Lower Caves | Learned location of Warlord (-4) 9618 | -6/Lower Caves | Warlord Commander delivered Encrypted Comm Array 9623 | -6/Lower Caves | Found Encrypted Comm Array 9681 | -6/Lower Caves | A Derelict revealed a hidden shortcut to meet someone special 9687 | -6/Lower Caves | Identified exit to Data Miner 9688 | -6/Lower Caves | Entered Data Miner 9688 | -6/Data Miner | Discovered new exit (range 6) 9699 | -6/Data Miner | Identified exit to Proximity Caves 9721 | -6/Data Miner | Met Data Miner 9755 | -6/Data Miner | Learned location of Section 7 (-3) 9755 | -6/Data Miner | Acquired the access code to Warlord's prototype stash 9780 | -6/Data Miner | Received God Mode back door access code from Data Miner 9821 | -6/Data Miner | Entered Proximity Caves 9824 | -5/Proximity Caves | Spotter reported a threat 9866 | -5/Proximity Caves | Attracted the attention of an 0b10 checkpoint 10230 | -5/Proximity Caves | Spotter reported a threat 10401 | -5/Proximity Caves | Attracted the attention of an 0b10 outpost 10624 | -5/Proximity Caves | Lost 5 parts (1p3u1w) 10658 | -5/Proximity Caves | Discovered new exit (range 6) 10669 | -5/Proximity Caves | Identified exit to Factory 10671 | -5/Proximity Caves | Entered Factory 10671 | -5/Factory | Evolved 2 slots: Propulsion x1, Weapon x1 10987 | -5/Factory | Build established: Scavenger-Tank 11235 | -5/Factory | Discovered new exit (range 8) 11247 | -5/Factory | Identified exit to Factory 11438 | -5/Factory | Entered another Factory area 11438 | -4/Factory | Evolved 2 slots: Utility x1, Weapon x1 11742 | -4/Factory | Discovered new exit (range 7) 12080 | -4/Factory | Fabricated Enh. Quantum Rifle (x2) 12184 | -4/Factory | Fabricated X-72 Disruptor? 12237 | -4/Factory | Destroyed 7 combat bots 12458 | -4/Factory | Build established: Tank 12603 | -4/Factory | Lost 4 parts (2n2u) 12708 | -4/Factory | Joined by Warlord Muscle squad 12876 | -4/Factory | Build established: Skirmisher 12971 | -4/Factory | First assault squad dispatched 12994 | -4/Factory | Incoming assault squad redirected 13040 | -4/Factory | P-70 Sage assimilated allied S2-CJY(b) 13214 | -4/Factory | Released all parts (10) 13238 | -4/Factory | Incoming assault squad redirected 13302 | -4/Factory | Entered Research 13302 | -3/Research | Evolved 2 slots: Power x1, Utility x1 13422 | -3/Research | Discovered new exit (range 14) 13472 | -3/Research | Entered Armory 14018 | -3/Armory | Released all parts (12) 14021 | -3/Armory | System corruption reached 10% 14048 | -3/Armory | Lost 7 parts (1p1n2u3w) 14109 | -3/Armory | Core integrity fell below 50% 14137 | -3/Armory | Core integrity fell below 20% 14144 | -3/Armory | Destroyed by P-80 Master via exploding Compression Vault Last Messages --------------- Acquired Adv. Heat Sink. System corrupted: Heat flow error (+247). S-43 Plague suffers critical hit (Destroy). System corrupted: Energy discharge (-60). Lgt. Angular Momentum Engine destroyed. O-32 Director: "IFF HANDSHAKE FAILED. SECURING TERMINAL." O-32 Director sends out distress signal. O-32 Director uses terminal to summon reinforcements. ALERT: Hostiles spotted, dispatching reinforcements to Terminal A007. O-32 Director locks terminal. System corrupted: Matter fused (-9). Transport Mainframe disabled. Impulse Thruster Array destroyed. Critical hit (Burn: +37). Slug penetrates Wall. Compression Vault explodes. [Achievement: Achiever] Map ----- +----------------------------------------------------+ | ?????????????????????????????????????????????????? | | ?????????????????????????????????????????????????? | | ?????????????????????????????????????????????????? | | ?????????????????????????????????????????????????? | | ?????????????????????????????????????????????????? | | ?????????????????????????????????????????????????? | | ?????????????????????????????????????????????????? | | ?????????????????????????????????????????????????? | | ?????????????????????????????????????????????????? | | ?????????????????????????????????????????????????? | | ?????????????????????????????????????????????????? | | ??????????????????? ???????????????????????????? | | ???????????????? ! ???????????????????????????? | | ?????????????? g ???????????????????????????? | | ?????????????? #+#+#??????????????????????? | | ??????????????? gg g #??????????????????????? | | ???????????????? +??????????????????????? | | ????????????????# #??????????????????????? | | ????????????????# w #??????????????????????? | | ????????????????# #??????????????????????? | | ???????########## #??????????????????????? | | ????#### ##?#+#?????????????????? | | ????? ### ###########???????? | | ?????? h ######### | | ??????## h % | | ??????"" @ ##" | | ??????"T """ """ """ ### | | ???????# """ """ """ #?? | | ???????# """ """ """ ### | | ???????# | | ???????###### g | | ????????????# ####+#############+# | | """#????????# ^ # #?# | | #????????# # """ """ #?# | | #????????#ss + """ """ #?# | | ############# g # """ """ #?# | | gp p ########## """ """ #?# | | s ^ +????????# """ """???# " | | ###/######### ^ #????????# """ """???# " | | "" ######## #????????# ????# " | | T"" """ *#??????####????????########????# | | "" """" #??????????????????????????????# | | """" #??????????????????????????????# | | ]! """" #??????????????????????????????# | | ]! #??????????????????????????????######## | | ############?????????????????????????????????????? | | | | | | | | | +----------------------------------------------------+ Best States ------------- Heat Dissipation 95 Energy Generation 43 Energy Capacity 590 Matter Stores 300 Matter Capacity 300 Sight Range 20 Robot Scan Range 16 Terrain Scan Range 16 Terrain Scan Density 10 Armor Coverage 825 Point Defense Rating 80 Weapon Cycling 15 Evasion (%) 61 Target Analysis 8 Armor Integrity Analysis 30 Recoil Reduction 4 Energy Filtering 50 Particle Charging 20 Offensive Hacking 10 Trap Extractor Capacity 6 Item Schematics ----------------- Combat Drone Bay | -6/Data Miner | Free Lgt. Regenerative Plating | -6/Data Miner | Free Enh. Armored Leg | -6/Data Miner | Free Prc. Matter Filter | -6/Data Miner | Free Hvy. Gatling Laser | -6/Data Miner | Free Myomer Leg | -6/Data Miner | Free Nanoactuators | -6/Data Miner | Free Railgun | -6/Data Miner | Free Heavy Servo Lattice | -6/Data Miner | Free Imp. Launcher Guidance Computer | -6/Data Miner | Free Lgt. Particle Reactor | -6/Data Miner | Free Robot Schematics ------------------ Y-64 Sentinel | -6/Data Miner | Free B-60 Warrior | -6/Data Miner | Free A-15 Conveyor | -6/Data Miner | Free M-30 Cleanser | -6/Data Miner | Free X-72 Disruptor | -6/Data Miner | Free Fabricated ------------ Enh. Quantum Rifle | x2 | -4/Factory | Preloaded X-72 Disruptor | x2 | -4/Factory Alien Tech Used ----------------- None Achievements -------------- Achiever Dangerous Findings Gunslinger My Command Is Your Wish No Explosion For You Oh No You Don't! Pyromaniac Respectable Loadout The Oracle Challenges ------------ None Game ------ Seed BiocellMicrowarpLegs Manual? 0 Play Time 01:50:13 Cumulative 32.2 hours Start 2024.07.12 @ 07:42:29 End 2024.07.13 @ 18:33:10 Sessions 5 Manual Loads 0 Difficulty Rogue Special Mode None Game No. 69 Rogue 68 Adventurer 1 Explorer 0 Win Type - Total 0 Types 0/0/0/0/0/0/0/0/0 Lore% 16 Gallery% 29 Achievement% 25 Wizard Run 0 Options --------- Layout 1 ASCII 0 Keyboard 0 Movement Mouse Keybinds 0 Fullscreen 2 Font 24/Terminus Map View 50x35 Zoom Use 0% Tactical HUD 0 Map Filters NONE Filters NONE Steam 1 RUN: 9a71eb5f-d5b4-4e98-9f93-382368fbca3e